fUSD/lending_fUSD_20250617
["ID","MTS","AMOUNT","RATE_DAILY","PERIOD"]
[366346734,1750200652991,-151.0,0.00016438,2]
[366346735,1750200653003,-4809.2,0.00016438,2]
[366346736,1750200653013,-151.0,0.00016438,2]
[366346737,1750200653023,-151.0,0.00016438,2]
[366346738,1750200653032,-151.0,0.00016438,2]
[366346739,1750200653042,-490.0,0.00016438,2]
[366346740,1750200653052,-490.0,0.00016438,2]
[366346741,1750200653062,-490.0,0.00016438,2]
[366346742,1750200653071,-490.0,0.00016438,2]
[366346743,1750200653082,-490.0,0.00016438,2]
[366346744,1750200653092,-726.15,0.00016438,2]
[366346745,1750200653102,-490.0,0.00016438,2]
[366346746,1750200653112,-490.0,0.00016438,2]
[366346747,1750200653121,-2202.37,0.00016438,2]
[366346748,1750200653132,-3732.93,0.00016438,2]
[366346749,1750200653142,-587.75,0.00016438,2]
[366346750,1750200653152,-1878.63,0.00016438,2]
[366346751,1750200653162,-927.86,0.00016438,2]
[366346752,1750200653172,-667.56,0.00016438,2]
[366346753,1750200653181,-490.0,0.00016438,2]
[366346754,1750200653191,-490.0,0.00016438,2]
[366346755,1750200653201,-490.0,0.00016438,2]
[366346756,1750200653211,-490.0,0.00016438,2]
[366346757,1750200653221,-861.0,0.00016438,2]
[366346758,1750200653231,-3427.99,0.00016438,2]
[366346759,1750200653240,-3531.67,0.00016438,2]
[366346760,1750200653251,-1039.7,0.00016438,2]
[366346761,1750200653261,-597.32074244,0.00016438,2]
[366346762,1750200653271,-609.45,0.00016438,2]
[366346763,1750200653281,-490.0,0.00016438,2]
[366346764,1750200653291,-490.0,0.00016438,2]
[366346765,1750200653301,-490.0,0.00016438,2]
[366346766,1750200653311,-924.78,0.00016438,2]
[366346767,1750200653322,-490.0,0.00016438,2]
[366346768,1750200653332,-833.95,0.00016438,2]
[366346769,1750200653342,-490.0,0.00016438,2]
[366346770,1750200653352,-1946.88,0.00016438,2]
[366346771,1750200653362,-2412.47,0.00016438,2]
[366346772,1750200653372,-2120.59,0.00016438,2]
[366346773,1750200653382,-428.93192991,0.00016438,2]
[366346774,1750200653391,-490.0,0.00016438,2]
[366346775,1750200653401,-6078.47,0.00016438,2]
[366346776,1750200653410,-551.51,0.00016438,2]
[366346777,1750200653420,-1166.24,0.00016438,2]
[366346778,1750200653430,-908.79,0.00016438,2]
[366346779,1750200653440,-490.0,0.00016438,2]
[366346780,1750200653450,-1322.38,0.00016438,2]
[366346781,1750200653460,-426.42337185,0.00016438,2]
[366346782,1750200653470,-1724.49,0.00016438,2]
[366346783,1750200653480,-13837.34,0.00016438,2]
[366346784,1750200653490,-490.0,0.00016438,2]
[366346785,1750200653501,-490.0,0.00016438,2]
[366346786,1750200653511,-490.0,0.00016438,2]
[366346787,1750200653521,-490.0,0.00016438,2]
[366346788,1750200653531,-186.25238,0.00016438,2]
[366346789,1750200653540,-490.0,0.00016438,2]
[366346790,1750200653550,-490.0,0.00016438,2]
[366346791,1750200653560,-490.0,0.00016438,2]
[366346792,1750200653570,-490.0,0.00016438,2]
[366346793,1750200653579,-490.0,0.00016438,2]
[366346794,1750200653589,-151.0,0.00016438,2]
[366346795,1750200653598,-3002.76,0.00016438,2]
[366346796,1750200653608,-151.0,0.00016438,2]
[366346797,1750200653618,-490.0,0.00016438,2]
[366346798,1750200653627,-151.0,0.00016438,2]
[366346799,1750200653637,-151.0,0.00016438,2]
[366346800,1750200653646,-490.0,0.00016438,2]
[366346801,1750200653656,-2409.48,0.00016438,2]
[366346802,1750200653666,-490.0,0.00016438,2]
[366346803,1750200653677,-300.0,0.00016438,2]
[366346804,1750200653689,-1002.66,0.00016438,2]
[366346805,1750200653698,-490.0,0.00016438,2]
[366346806,1750200653708,-490.0,0.00016438,2]
[366346807,1750200653719,-1478.0,0.00016438,2]
[366346808,1750200653730,-9447.66,0.00016438,2]
[366346809,1750200653744,-490.0,0.00016438,2]
[366346810,1750200653757,-314.50018566,0.00016438,2]
[366346811,1750200653768,-780.14,0.00016438,2]
[366346812,1750200653779,-490.0,0.00016438,2]
[366346813,1750200653792,-2071.3,0.00016438,2]
[366346814,1750200653802,-490.0,0.00016438,2]
[366346815,1750200653813,-1315.1,0.00016438,2]
[366346816,1750200653823,-519.53,0.00016438,2]
[366346817,1750200653835,-1029.19,0.00016438,2]
[366346818,1750200653846,-490.0,0.00016438,2]
[366346819,1750200653857,-490.0,0.00016438,2]
[366346820,1750200653868,-490.0,0.00016438,2]
[366346821,1750200653879,-1189.12,0.00016438,2]
[366346822,1750200653890,-490.0,0.00016438,2]
[366346823,1750200653899,-491.97234892,0.00016438,2]
[366346824,1750200653910,-490.0,0.00016438,2]
[366346825,1750200653920,-2051.37,0.00016438,2]
[366346826,1750200653930,-991.53,0.00016438,2]
[366346827,1750200653941,-4160.19,0.00016438,2]
[366346828,1750200653950,-490.0,0.00016438,2]
[366346829,1750200653961,-490.0,0.00016438,2]
[366346830,1750200653971,-490.0,0.00016438,2]
[366346831,1750200653982,-6552.42,0.00016438,2]
[366346832,1750200653992,-151.0,0.00016438,2]
[366346833,1750200654004,-490.0,0.00016438,2]
[366346834,1750200654015,-151.0,0.00016438,2]
[366346835,1750200654026,-490.0,0.00016438,2]
[366346836,1750200654037,-2336.07,0.00016438,2]
[366346837,1750200654047,-151.0,0.00016438,2]
[366346838,1750200654057,-151.0,0.00016438,2]
[366346839,1750200654068,-490.0,0.00016438,2]
[366346840,1750200654078,-1852.15,0.00016438,2]
[366346841,1750200654089,-1859.22,0.00016438,2]
[366346842,1750200654099,-490.0,0.00016438,2]
[366346843,1750200654110,-398.40092883,0.00016438,2]
[366346844,1750200654120,-225.818631,0.00016438,2]
[366346845,1750200654131,-4647.94,0.00016438,2]
[366346846,1750200654141,-490.0,0.00016438,2]
[366346847,1750200654151,-2693.69,0.00016438,2]
[366346848,1750200654161,-490.0,0.00016438,2]
[366346849,1750200654171,-748.58,0.00016438,2]
[366346850,1750200654185,-521.0870385,0.00016438,2]
[366346851,1750200654195,-2504.31,0.00016438,2]
[366346852,1750200654205,-490.0,0.00016438,2]
[366346853,1750200654215,-490.0,0.00016438,2]
[366346854,1750200654226,-500.0,0.00016438,2]
[366346855,1750200654236,-500.0,0.00016438,2]
[366346856,1750200654246,-697.03,0.00016438,2]
[366346857,1750200654256,-500.0,0.00016438,2]
[366346858,1750200654266,-500.0,0.00016438,2]
[366346859,1750200654277,-1428.93,0.00016438,2]
[366346860,1750200654286,-940.99,0.00016438,2]
[366346861,1750200654296,-500.0,0.00016438,2]
[366346862,1750200654306,-490.0,0.00016438,2]
[366346863,1750200654316,-490.0,0.00016438,2]
[366346864,1750200654326,-490.0,0.00016438,2]
[366346865,1750200654337,-490.0,0.00016438,2]
[366346866,1750200654347,-490.0,0.00016438,2]
[366346867,1750200654357,-490.0,0.00016438,2]
[366346868,1750200654368,-526.61,0.00016438,2]
[366346869,1750200654378,-1444.56,0.00016438,2]
[366346870,1750200654388,-490.0,0.00016438,2]
[366346871,1750200654398,-1139.69,0.00016438,2]
[366346872,1750200654408,-490.0,0.00016438,2]
[366346873,1750200654418,-490.0,0.00016438,2]
[366346874,1750200654428,-490.0,0.00016438,2]
[366346875,1750200654438,-604.04,0.00016438,2]
[366346876,1750200654448,-3388.69,0.00016438,2]
[366346877,1750200654458,-490.0,0.00016438,2]
[366346878,1750200654468,-490.0,0.00016438,2]
[366346879,1750200654478,-490.0,0.00016438,2]
[366346880,1750200654488,-490.0,0.00016438,2]
[366346881,1750200654499,-490.0,0.00016438,2]
[366346882,1750200654509,-1858.46,0.00016438,2]
[366346883,1750200654519,-10128.65,0.00016438,2]
[366346884,1750200654529,-831.76,0.00016438,2]
[366346885,1750200654539,-500.0,0.00016438,2]
[366346886,1750200654551,-151.0,0.00016438,2]
[366346887,1750200654721,-391.88616007,0.00016438,2]
[366346888,1750200654731,-490.0,0.00016438,2]
[366346889,1750200654742,-433.19303793,0.00016438,2]
[366346890,1750200654753,-490.0,0.00016438,2]
[366346891,1750200654763,-490.0,0.00016438,2]
[366346892,1750200654772,-490.0,0.00016438,2]
[366346893,1750200654783,-490.0,0.00016438,2]
[366346894,1750200654796,-490.0,0.00016438,2]
[366346895,1750200654805,-752.83,0.00016438,2]
[366346896,1750200654815,-490.0,0.00016438,2]
[366346897,1750200654827,-1286.01,0.00016438,2]
[366346898,1750200654837,-1757.96,0.00016438,2]
[366346899,1750200654847,-490.0,0.00016438,2]
[366346900,1750200654857,-2832.6,0.00016438,2]
[366346901,1750200654867,-490.0,0.00016438,2]
[366346902,1750200654878,-490.0,0.00016438,2]
[366346903,1750200654888,-490.0,0.00016438,2]
[366346904,1750200654898,-1282.45,0.00016438,2]
[366346905,1750200654908,-490.0,0.00016438,2]
[366346906,1750200654918,-490.0,0.00016438,2]
[366346907,1750200654928,-490.0,0.00016438,2]
[366346908,1750200654938,-432.21373583,0.00016438,2]
[366346909,1750200654948,-1245.05,0.00016438,2]
[366346910,1750200654959,-490.0,0.00016438,2]
[366346911,1750200654969,-490.0,0.00016438,2]
[366346912,1750200654979,-490.0,0.00016438,2]
[366346913,1750200654989,-490.0,0.00016438,2]
[366346914,1750200654999,-7363.17,0.00016438,2]
[366346915,1750200655009,-297.68277111,0.00016438,2]
[366346916,1750200655019,-490.0,0.00016438,2]
[366346917,1750200655029,-490.0,0.00016438,2]
[366346918,1750200655039,-979.71,0.00016438,2]
[366346919,1750200655049,-11023.42,0.00016438,2]
[366346920,1750200655058,-490.0,0.00016438,2]
[366346921,1750200655068,-490.0,0.00016438,2]
[366346922,1750200655078,-490.0,0.00016438,2]
[366346923,1750200655088,-1078.23,0.00016438,2]
[366346924,1750200655098,-417.83956927,0.00016438,2]
[366346925,1750200655107,-490.0,0.00016438,2]
[366346926,1750200655117,-490.0,0.00016438,2]
[366346927,1750200655127,-490.0,0.00016438,2]
[366346928,1750200655137,-21885.3,0.00016438,2]
[366346929,1750200655147,-895.2,0.00016438,2]
[366346930,1750200655156,-670.99,0.00016438,2]
[366346931,1750200655166,-490.0,0.00016438,2]
[366346932,1750200655176,-490.0,0.00016438,2]
[366346933,1750200655186,-490.0,0.00016438,2]
[366346934,1750200655195,-722.39,0.00016438,2]
[366346935,1750200655204,-490.0,0.00016438,2]
[366346936,1750200655214,-849.22,0.00016438,2]
[366346937,1750200655224,-490.0,0.00016438,2]
[366346938,1750200655234,-2462.29,0.00016438,2]
[366346939,1750200655244,-490.0,0.00016438,2]
[366346940,1750200655253,-3454.61,0.00016438,2]
[366346941,1750200655263,-5424.19,0.00016438,2]
[366346942,1750200655273,-490.0,0.00016438,2]
[366346943,1750200655283,-474.9395511,0.00016438,2]
[366346944,1750200655292,-1397.35,0.00016438,2]
[366346945,1750200655302,-1788.34,0.00016438,2]
[366346946,1750200655312,-490.0,0.00016438,2]
[366346947,1750200655322,-382.13539499,0.00016438,2]
[366346948,1750200655333,-490.0,0.00016438,2]
[366346949,1750200655345,-1470.19,0.00016438,2]
[366346950,1750200655360,-740.37,0.00016438,2]
[366346951,1750200655370,-4207.27,0.00016438,2]
[366346952,1750200655380,-2339.36,0.00016438,2]
[366346953,1750200655390,-6570.05,0.00016438,2]
[366346954,1750200655411,-490.0,0.00016438,2]
[366346955,1750200655421,-490.0,0.00016438,2]
[366346956,1750200655431,-490.0,0.00016438,2]
[366346957,1750200655440,-490.0,0.00016438,2]
[366346958,1750200655450,-1076.59,0.00016438,2]
[366346959,1750200655459,-490.0,0.00016438,2]
[366346960,1750200655469,-709.25,0.00016438,2]
[366346961,1750200655480,-490.0,0.00016438,2]
[366346962,1750200655490,-879.41,0.00016438,2]
[366346963,1750200655499,-5565.415736,0.00016438,2]
[366346964,1750200655509,-490.0,0.00016438,2]
[366346965,1750200655519,-5565.415736,0.00016438,2]
[366346966,1750200655529,-490.0,0.00016438,2]
[366346967,1750200655539,-5565.415736,0.00016438,2]
[366346968,1750200655549,-490.0,0.00016438,2]
[366346969,1750200655559,-5565.415736,0.00016438,2]
[366346970,1750200655568,-645.79,0.00016438,2]
[366346971,1750200655578,-490.0,0.00016438,2]
[366346972,1750200655587,-490.0,0.00016438,2]
[366346973,1750200655595,-2318.91,0.00016438,2]
[366346974,1750200655605,-5565.415736,0.00016438,2]
[366346975,1750200655615,-5565.415736,0.00016438,2]
[366346976,1750200655624,-490.0,0.00016438,2]
[366346977,1750200655634,-5565.415736,0.00016438,2]
[366346978,1750200655643,-490.0,0.00016438,2]
[366346979,1750200655653,-5565.415736,0.00016438,2]
[366346980,1750200655663,-3926.43,0.00016438,2]
[366346981,1750200655673,-957.92,0.00016438,2]
[366346982,1750200655682,-490.0,0.00016438,2]
[366346983,1750200655691,-490.0,0.00016438,2]
[366346984,1750200655701,-490.0,0.00016438,2]
[366346985,1750200655711,-1367.91,0.00016438,2]
[366346986,1750200655720,-221.95745548,0.00016438,2]
[366346987,1750200655730,-460.0,0.00016438,2]
[366346988,1750200655739,-490.0,0.00016438,2]
[366346989,1750200655749,-3978.23,0.00016438,2]
[366346990,1750200655759,-490.0,0.00016438,2]
[366346991,1750200655769,-490.0,0.00016438,2]
[366346992,1750200655779,-1233.88,0.00016438,2]
[366346993,1750200655791,-7936.5,0.00016438,2]
[366346994,1750200655800,-490.0,0.00016438,2]
[366346995,1750200655810,-490.0,0.00016438,2]
[366346996,1750200655820,-1157.97,0.00016438,2]
[366346997,1750200655831,-490.0,0.00016438,2]
[366346998,1750200655840,-3147.51,0.00016438,2]
[366346999,1750200655850,-490.0,0.00016438,2]
[366347000,1750200655860,-490.0,0.00016438,2]
[366347001,1750200655869,-490.0,0.00016438,2]
[366347002,1750200655880,-490.0,0.00016438,2]
[366347003,1750200655890,-994.4,0.00016438,2]
[366347004,1750200655899,-490.0,0.00016438,2]
[366347005,1750200655908,-490.0,0.00016438,2]
[366347006,1750200655917,-495.89,0.00016438,2]
[366347007,1750200655927,-526.81042213,0.00016438,2]
[366347008,1750200655937,-1486.49,0.00016438,2]
[366347009,1750200655946,-444.03038494,0.00016438,2]
[366347010,1750200655956,-1399.37,0.00016438,2]
[366347011,1750200655965,-490.0,0.00016438,2]
[366347012,1750200655975,-490.0,0.00016438,2]
[366347013,1750200655985,-1950.33,0.00016438,2]
[366347014,1750200655995,-490.0,0.00016438,2]
[366347015,1750200656005,-490.0,0.00016438,2]
[366347016,1750200656014,-151.0,0.00016438,2]
[366347017,1750200656024,-3654.16,0.00016438,2]
[366347018,1750200656034,-153.661352,0.00016438,2]
[366347019,1750200656044,-1027.99,0.00016438,2]
[366347020,1750200656053,-490.0,0.00016438,2]
[366347021,1750200656063,-490.0,0.00016438,2]
[366347022,1750200656072,-490.0,0.00016438,2]
[366347023,1750200656082,-3417.25,0.00016438,2]
[366347024,1750200656091,-490.0,0.00016438,2]
[366347025,1750200656101,-490.0,0.00016438,2]
[366347026,1750200656111,-22341.73,0.00016438,2]
[366347027,1750200656126,-490.0,0.00016438,2]
[366347028,1750200656136,-490.0,0.00016438,2]
[366347029,1750200656146,-1507.618432,0.00016438,2]
[366347030,1750200656157,-1507.618432,0.00016438,2]
[366347031,1750200656167,-1507.618432,0.00016438,2]
[366347032,1750200656177,-1333.09,0.00016438,2]
[366347033,1750200656188,-402.96517223,0.00016438,2]
[366347034,1750200656198,-1507.618432,0.00016438,2]
[366347035,1750200656208,-490.0,0.00016438,2]
[366347036,1750200656218,-490.0,0.00016438,2]
[366347037,1750200656229,-9262.55,0.00016438,2]
[366347038,1750200656239,-9262.55,0.00016438,2]
[366347039,1750200656249,-490.0,0.00016438,2]
[366347040,1750200656260,-1507.618432,0.00016438,2]
[366347041,1750200656270,-9262.55,0.00016438,2]
[366347042,1750200656280,-1507.618432,0.00016438,2]
[366347043,1750200656291,-9262.55,0.00016438,2]
[366347044,1750200656301,-3098.72,0.00016438,2]
[366347045,1750200656312,-9262.55,0.00016438,2]
[366347046,1750200656323,-1507.618432,0.00016438,2]
[366347047,1750200656332,-490.0,0.00016438,2]
[366347048,1750200656342,-490.0,0.00016438,2]
[366347049,1750200656352,-1507.618432,0.00016438,2]
[366347050,1750200656362,-490.0,0.00016438,2]
[366347051,1750200656372,-1530.46,0.00016438,2]
[366347052,1750200656382,-490.0,0.00016438,2]
[366347053,1750200656391,-6147.23,0.00016438,2]
[366347054,1750200656402,-1278.41,0.00016438,2]
[366347055,1750200656412,-1019.08,0.00016438,2]
[366347056,1750200656422,-490.0,0.00016438,2]
[366347057,1750200656432,-490.0,0.00016438,2]
[366347058,1750200656442,-1263.36,0.00016438,2]
[366347059,1750200656452,-490.0,0.00016438,2]
[366347060,1750200656468,-490.0,0.00016438,2]
[366347061,1750200656477,-3618.58,0.00016438,2]
[366347062,1750200656487,-490.0,0.00016438,2]
[366347063,1750200656496,-2115.99,0.00016438,2]
[366347064,1750200656506,-490.0,0.00016438,2]
[366347065,1750200656516,-490.0,0.00016438,2]
[366347066,1750200656526,-18278.83,0.00016438,2]
[366347067,1750200656535,-543.54,0.00016438,2]
[366347068,1750200656545,-490.0,0.00016438,2]
[366347069,1750200656555,-490.0,0.00016438,2]
[366347070,1750200656568,-1083.44,0.00016438,2]
[366347071,1750200656577,-490.126626,0.00016438,2]
[366347072,1750200656587,-490.126626,0.00016438,2]
[366347073,1750200656597,-490.0,0.00016438,2]
[366347074,1750200656607,-490.0,0.00016438,2]
[366347075,1750200656617,-2440.3,0.00016438,2]
[366347076,1750200656627,-490.126626,0.00016438,2]
[366347077,1750200656636,-490.126626,0.00016438,2]
[366347078,1750200656646,-1437.34,0.00016438,2]
[366347079,1750200656656,-490.0,0.00016438,2]
[366347080,1750200656666,-1193.38,0.00016438,2]
[366347081,1750200656676,-490.0,0.00016438,2]
[366347082,1750200656686,-490.0,0.00016438,2]
[366347083,1750200656696,-2246.91,0.00016438,2]
[366347084,1750200656706,-748.6,0.00016438,2]
[366347085,1750200656715,-3015.69,0.00016438,2]
[366347086,1750200656725,-518.04,0.00016438,2]
[366347087,1750200656736,-490.0,0.00016438,2]
[366347088,1750200656746,-496.88,0.00016438,2]
[366347089,1750200656756,-1254.3,0.00016438,2]
[366347090,1750200656766,-490.0,0.00016438,2]
[366347091,1750200656776,-597.41,0.00016438,2]
[366347092,1750200656789,-7688.43,0.00016438,2]
[366347093,1750200656799,-490.0,0.00016438,2]
[366347094,1750200656809,-490.0,0.00016438,2]
[366347095,1750200656819,-907.51,0.00016438,2]
[366347096,1750200656828,-1622.67,0.00016438,2]
[366347097,1750200656839,-490.0,0.00016438,2]
[366347098,1750200656848,-1741.88,0.00016438,2]
[366347099,1750200656858,-490.126626,0.00016438,2]
[366347100,1750200656869,-490.126626,0.00016438,2]
[366347101,1750200656880,-490.126626,0.00016438,2]
[366347102,1750200656890,-490.126626,0.00016438,2]
[366347103,1750200656900,-603.93,0.00016438,2]
[366347104,1750200656910,-2623.97,0.00016438,2]
[366347105,1750200656920,-2072.44,0.00016438,2]
[366347106,1750200656930,-490.0,0.00016438,2]
[366347107,1750200656940,-1964.26,0.00016438,2]
[366347108,1750200656950,-480.0,0.00016438,2]
[366347109,1750200656960,-490.0,0.00016438,2]
[366347110,1750200656970,-1439.53,0.00016438,2]
[366347111,1750200656980,-1487.85,0.00016438,2]
[366347112,1750200656990,-764.79,0.00016438,2]
[366347113,1750200657000,-1916.47,0.00016438,2]
[366347114,1750200657010,-490.0,0.00016438,2]
[366347115,1750200657020,-500.0,0.00016439,2]
[366347116,1750200657031,-160.96848469,0.00016439,2]
[366347117,1750200657040,-500.0,0.00016439,2]
[366347118,1750200657050,-500.0,0.00016439,2]
[366347119,1750200657060,-500.0,0.00016439,2]
[366347120,1750200657070,-306.04988907,0.00016439,2]
[366347121,1750200657080,-500.0,0.00016439,2]
[366347122,1750200657090,-559.86574339,0.00016439,2]
[366347123,1750200657100,-338.98365021,0.00016439,2]
[366347124,1750200657110,-500.0,0.00016439,2]
[366347125,1750200657120,-452.24893992,0.00016439,2]
[366347126,1750200657130,-509.18306179,0.00016439,2]
[366347127,1750200657141,-150.0,0.00016442,2]
[366347128,1750200657151,-150.0,0.00016444,2]
[366347129,1750200657162,-150.0,0.00016447,2]
[366347130,1750200657172,-3022.94764977,0.00016448,2]
[366347131,1750200657182,-150.0,0.00016448,2]
[366347132,1750200657192,-1000.0,0.00016448,2]
[366347133,1750200657204,-150.0,0.00016449,2]
[366347134,1750200657214,-1000.0,0.00016449,2]
[366347135,1750200657224,-150.0,0.00016449,2]
[366347136,1750200657233,-150.0,0.0001645,2]
[366347137,1750200657243,-150.0,0.00016453,2]
[366347138,1750200657253,-150.0,0.00016457,2]
[366347139,1750200657262,-150.0,0.00016458,2]
[366347140,1750200657272,-193.593973,0.00016465,2]
[366347141,1750200657282,-151.0,0.00016465,2]
[366347142,1750200657291,-151.17377438,0.0001647,2]
[366347143,1750200657301,-150.0,0.0001647,2]
[366347144,1750200657310,-150.0,0.00016475,2]
[366347145,1750200657320,-150.0,0.00016477,2]
[366347146,1750200657330,-150.0,0.00016484,2]
[366347147,1750200657340,-150.0,0.00016488,2]
[366347148,1750200657350,-150.0,0.0001649,2]
[366347149,1750200657359,-3332.0,0.00016492,2]
[366347150,1750200657369,-7111.0,0.00016492,2]
[366347151,1750200657379,-4090.0,0.00016492,2]
[366347152,1750200657389,-155.0,0.00016492,2]
[366347153,1750200657401,-150.0,0.00016493,2]
[366347154,1750200657411,-21195.7,0.000165,2]
[366347155,1750200657421,-2127.388849,0.000165,2]
[366347156,1750200657431,-2127.388849,0.000165,2]
[366347157,1750200657442,-151.0,0.000165,2]
[366347158,1750200657452,-3022.94764977,0.00016502,2]
[366347159,1750200657462,-181.42077172,0.00016502,2]
[366347160,1750200657472,-150.0,0.00016504,2]
[366347161,1750200657481,-150.0,0.00016509,2]
[366347162,1750200657491,-150.0,0.0001651,2]
[366347163,1750200657501,-150.0,0.00016517,2]
[366347164,1750200657511,-151.0,0.00016521,2]
[366347165,1750200657522,-151.0,0.00016521,2]
[366347166,1750200657532,-151.0,0.00016521,2]
[366347167,1750200657543,-151.0,0.00016521,2]
[366347168,1750200657552,-151.0,0.00016521,2]
[366347169,1750200657563,-1404.534588,0.00016521,2]
[366347170,1750200657573,-1404.534588,0.00016521,2]
[366347171,1750200657583,-150.0,0.00016529,2]
[366347172,1750200657592,-150.0,0.0001653,2]
[366347173,1750200657602,-150.0,0.00016531,2]
[366347174,1750200657612,-150.0,0.00016532,2]
[366347175,1750200657622,-150.0,0.00016534,2]
[366347176,1750200657632,-1000.0,0.00016537,2]
[366347177,1750200657642,-150.0,0.00016545,2]
[366347178,1750200657653,-1000.0,0.00016549,2]
[366347179,1750200657663,-150.0,0.00016554,2]
[366347180,1750200657672,-150.0,0.00016556,2]
[366347181,1750200657682,-1000.0,0.00016557,2]
[366347182,1750200657692,-3022.94764977,0.00016557,2]
[366347183,1750200657701,-151.0,0.00016573,2]
[366347184,1750200657711,-150.0,0.00016575,2]
[366347185,1750200657722,-203.33230235,0.00016575,2]
[366347186,1750200657732,-150.00000031,0.00016575,2]
[366347187,1750200657742,-150.0,0.00016575,2]
[366347188,1750200657752,-150.0,0.00016575,2]
[366347189,1750200657762,-150.0,0.00016575,2]
[366347190,1750200657772,-150.0,0.00016575,2]
[366347191,1750200657781,-150.0,0.00016575,2]
[366347192,1750200657794,-150.0,0.00016581,2]
[366347193,1750200657805,-1000.0,0.00016585,2]
[366347194,1750200657815,-150.0,0.00016587,2]
[366347195,1750200657825,-151.0,0.00016593,2]
[366347196,1750200657835,-500.0,0.00016593,2]
[366347197,1750200657845,-5565.415736,0.00016593,2]
[366347198,1750200657854,-5565.415736,0.00016593,2]
[366347199,1750200657865,-1507.618432,0.00016593,2]
[366347200,1750200657876,-9262.55,0.00016593,2]
[366347201,1750200657886,-1507.618432,0.00016593,2]
[366347202,1750200657896,-490.126626,0.00016593,2]
[366347203,1750200657906,-490.126626,0.00016593,2]
[366347204,1750200657916,-151.0,0.00016594,2]
[366347205,1750200657926,-151.0,0.00016594,2]
[366347206,1750200657938,-151.0,0.00016594,2]
[366347207,1750200657951,-151.0,0.00016594,2]
[366347208,1750200657962,-315.909236,0.00016594,2]
[366347209,1750200657972,-315.909236,0.00016594,2]
[366347210,1750200657982,-151.0,0.00016594,2]
[366347211,1750200657992,-151.0,0.00016594,2]
[366347212,1750200658003,-151.0,0.00016594,2]
[366347213,1750200658013,-151.0,0.00016594,2]
[366347214,1750200658023,-569.188376,0.00016594,2]
[366347215,1750200658033,-151.0,0.00016594,2]
[366347216,1750200658044,-569.188376,0.00016594,2]
[366347217,1750200658054,-151.0,0.00016594,2]
[366347218,1750200658065,-420.291554,0.00016594,2]
[366347219,1750200658074,-2127.388849,0.00016594,2]
[366347220,1750200658084,-420.291554,0.00016594,2]
[366347221,1750200658095,-461.826056,0.00016594,2]
[366347222,1750200658104,-461.826056,0.00016594,2]
[366347223,1750200658114,-2127.388849,0.00016594,2]
[366347224,1750200658125,-151.0,0.00016594,2]
[366347225,1750200658135,-151.0,0.00016594,2]
[366347226,1750200658145,-151.0,0.00016594,2]
[366347227,1750200658155,-155.79886,0.00016594,2]
[366347228,1750200658165,-151.0,0.00016594,2]
[366347229,1750200658175,-155.79886,0.00016594,2]
[366347230,1750200658186,-151.0,0.00016594,2]
[366347231,1750200658195,-1140.795429,0.00016594,2]
[366347232,1750200658206,-178.169629,0.00016594,2]
[366347233,1750200658216,-178.169629,0.00016594,2]